fUSD/lending_fUSD_20240630
["ID","MTS","AMOUNT","RATE_DAILY","PERIOD"]
[330686582,1719711043272,-561.86322816,0.00013698,3]
[330686590,1719711043320,-43.31677184,0.00013698,3]
[330686592,1719711043329,-470.16344217,0.00013698,3]
[330686594,1719711043340,-29.83655783,0.00013698,3]
[330686596,1719711043350,-600.31,0.00013698,3]
[330686598,1719711043358,-500.0,0.00013698,3]
[330686600,1719711043367,-203.84604213,0.00013698,3]
[330686602,1719711043379,-676.21395787,0.00013698,3]
[330686604,1719711043388,-187.03921993,0.00013698,3]
[330686607,1719711043399,-312.96078007,0.00013698,3]
[330686608,1719711043408,-34.87279193,0.00013698,3]
[330686611,1719711043419,-465.12720807,0.00013698,3]
[330686613,1719711043428,-772.55,0.00013698,3]
[330686615,1719711043438,-537.38,0.00013698,3]
[330686617,1719711043447,-1133.19,0.00013698,3]
[330686619,1719711043456,-582.47,0.00013698,3]
[330686621,1719711043466,-500.0,0.00013698,3]
[330686623,1719711043475,-2714.67,0.00013698,3]
[330686625,1719711043484,-510.91,0.00013698,3]
[330686627,1719711043493,-862.26,0.00013698,3]
[330686629,1719711043503,-500.0,0.00013698,3]
[330686631,1719711043512,-289.610534,0.00013698,2]
[330686633,1719711043524,-802.38,0.00013698,3]
[330686635,1719711043533,-500.0,0.00013698,3]
[330686637,1719711043542,-500.0,0.00013698,3]
[330686640,1719711043552,-256.226958,0.00013698,2]
[330686644,1719711043561,-500.0,0.00013698,3]
[330686648,1719711043574,-521.73,0.00013698,3]
[330686652,1719711043584,-500.0,0.00013698,3]
[330686656,1719711043593,-500.0,0.00013698,3]
[330686660,1719711043602,-500.0,0.00013698,3]
[330686664,1719711043613,-500.0,0.00013698,3]
[330686668,1719711043622,-2040.84,0.00013698,3]
[330686672,1719711043632,-500.0,0.00013698,3]
[330686676,1719711043641,-452.22112178,0.00013698,3]
[330686679,1719711043652,-500.0,0.00013698,3]
[330686682,1719711043662,-532.39,0.00013698,3]
[330686685,1719711043671,-500.0,0.00013698,3]
[330686688,1719711043680,-1265.1,0.00013698,3]
[330686690,1719711043690,-500.0,0.00013698,3]
[330686693,1719711043699,-500.0,0.00013698,3]
[330686694,1719711043708,-500.0,0.00013698,3]
[330686696,1719711043717,-500.0,0.00013698,3]
[330686697,1719711043726,-500.0,0.00013698,3]
[330686699,1719711043735,-952.19,0.00013698,3]
[330686700,1719711043744,-500.0,0.00013698,3]
[330686701,1719711043754,-588.51,0.00013698,3]
[330686703,1719711043763,-529.97,0.00013698,3]
[330686704,1719711043771,-500.0,0.00013698,3]
[330686706,1719711043780,-155.80089021,0.00013698,3]
[330686707,1719711043790,-500.0,0.00013698,3]
[330686709,1719711043799,-691.24,0.00013698,3]
[330686711,1719711043809,-500.0,0.00013698,3]
[330686712,1719711043819,-500.0,0.00013698,3]
[330686714,1719711043828,-660.79,0.00013698,3]
[330686715,1719711043836,-500.0,0.00013698,3]
[330686717,1719711043846,-671.71,0.00013698,3]
[330686718,1719711043855,-500.0,0.00013698,3]
[330686720,1719711043865,-500.0,0.00013698,3]
[330686721,1719711043875,-500.0,0.00013698,3]
[330686723,1719711043890,-1531.98,0.00013698,3]
[330686725,1719711043899,-500.0,0.00013698,3]
[330686726,1719711043909,-500.0,0.00013698,3]
[330686728,1719711043919,-500.0,0.00013698,3]
[330686730,1719711043929,-548.68,0.00013698,3]
[330686731,1719711043938,-1034.28,0.00013698,3]
[330686733,1719711043948,-500.0,0.00013698,3]
[330686735,1719711043957,-181.34624756,0.00013698,3]
[330686736,1719711043966,-588.83,0.00013698,3]
[330686738,1719711043975,-500.0,0.00013698,3]
[330686739,1719711043984,-500.0,0.00013698,3]
[330686741,1719711043994,-538.51,0.00013698,3]
[330686743,1719711044003,-500.0,0.00013698,3]
[330686744,1719711044013,-500.0,0.00013698,3]
[330686746,1719711044022,-500.0,0.00013698,3]
[330686748,1719711044032,-564.75,0.00013698,3]
[330686749,1719711044041,-527.93,0.00013698,3]
[330686751,1719711044051,-511.23,0.00013698,3]
[330686752,1719711044061,-500.0,0.00013698,3]
[330686754,1719711044070,-500.0,0.00013698,3]
[330686756,1719711044079,-500.0,0.00013698,3]
[330686757,1719711044088,-599.85,0.00013698,3]
[330686759,1719711044097,-151.0,0.00013698,2]
[330686761,1719711044106,-500.0,0.00013698,3]
[330686762,1719711044115,-998.73,0.00013698,3]
[330686764,1719711044125,-879.24,0.00013698,3]
[330686766,1719711044135,-151.0,0.00013698,2]
[330686767,1719711044144,-500.0,0.00013698,3]
[330686769,1719711044153,-1046.19,0.00013698,3]
[330686770,1719711044162,-1382.68,0.00013698,3]
[330686772,1719711044172,-500.0,0.00013698,3]
[330686774,1719711044181,-500.0,0.00013698,3]
[330686775,1719711044190,-500.0,0.00013698,3]
[330686777,1719711044199,-250.68885062,0.00013698,3]
[330686779,1719711044209,-500.0,0.00013698,3]
[330686780,1719711044218,-500.0,0.00013698,3]
[330686782,1719711044227,-151.0,0.00013698,2]
[330686784,1719711044239,-500.0,0.00013698,3]
[330686785,1719711044248,-1014.61,0.00013698,3]
[330686787,1719711044257,-500.0,0.00013698,3]
[330686788,1719711044266,-500.0,0.00013698,3]
[330686790,1719711044275,-500.0,0.00013698,3]
[330686792,1719711044284,-500.0,0.00013698,3]
[330686793,1719711044294,-500.0,0.00013698,3]
[330686795,1719711044303,-463.39343374,0.00013698,3]
[330686797,1719711044312,-500.0,0.00013698,3]
[330686798,1719711044322,-500.0,0.00013698,3]
[330686800,1719711044331,-500.0,0.00013698,3]
[330686802,1719711044341,-500.0,0.00013698,3]
[330686803,1719711044351,-500.0,0.00013698,3]
[330686805,1719711044361,-500.0,0.00013698,3]
[330686807,1719711044370,-1918.33,0.00013698,3]
[330686808,1719711044379,-500.0,0.00013698,3]
[330686810,1719711044388,-1152.62,0.00013698,3]
[330686811,1719711044398,-500.0,0.00013698,3]
[330686813,1719711044407,-672.21,0.00013698,3]
[330686815,1719711044417,-500.0,0.00013698,3]
[330686816,1719711044427,-500.0,0.00013698,3]
[330686818,1719711044438,-500.0,0.00013698,3]
[330686820,1719711044447,-1012.12,0.00013698,3]
[330686821,1719711044456,-500.0,0.00013698,3]
[330686823,1719711044466,-805.69,0.00013698,3]
[330686825,1719711044475,-728.19,0.00013698,3]
[330686827,1719711044485,-500.75,0.00013698,3]
[330686829,1719711044494,-151.0,0.00013698,2]
[330686831,1719711044503,-500.0,0.00013698,3]
[330686832,1719711044517,-1145.72,0.00013698,3]
[330686833,1719711044526,-256.413738,0.00013698,2]
[330686834,1719711044535,-636.14,0.00013698,3]
[330686835,1719711044544,-500.0,0.00013698,3]
[330686836,1719711044555,-500.0,0.00013698,3]
[330686837,1719711044564,-959.16,0.00013698,3]
[330686838,1719711044578,-500.0,0.00013698,3]
[330686839,1719711044587,-500.0,0.00013698,3]
[330686840,1719711044596,-532.97,0.00013698,3]
[330686841,1719711044605,-796.05,0.00013698,3]
[330686842,1719711044615,-726.22,0.00013698,3]
[330686843,1719711044624,-500.0,0.00013698,3]
[330686844,1719711044634,-500.0,0.00013698,3]
[330686845,1719711044645,-500.0,0.00013698,3]
[330686847,1719711044654,-500.0,0.00013698,3]
[330686848,1719711044663,-500.0,0.00013698,3]
[330686849,1719711044672,-500.0,0.00013698,3]
[330686851,1719711044684,-500.0,0.00013698,3]
[330686853,1719711044694,-500.0,0.00013698,3]
[330686855,1719711044704,-500.0,0.00013698,3]
[330686857,1719711044713,-362.71047964,0.00013698,3]
[330686859,1719711044722,-500.0,0.00013698,3]
[330686861,1719711044732,-1185.2,0.00013698,3]
[330686863,1719711044742,-583.84,0.00013698,3]
[330686865,1719711044751,-500.0,0.00013698,3]
[330686867,1719711044760,-500.0,0.00013698,3]
[330686869,1719711044769,-500.0,0.00013698,3]
[330686871,1719711044779,-408.3025379,0.00013698,3]
[330686873,1719711044788,-500.0,0.00013698,3]
[330686875,1719711044797,-296.18,0.00013698,3]
[330686877,1719711044807,-500.0,0.00013698,3]
[330686879,1719711044816,-500.0,0.00013698,3]
[330686881,1719711044825,-2306.38,0.00013698,3]
[330686883,1719711044834,-500.0,0.00013698,3]
[330686885,1719711044843,-712.33,0.00013698,3]
[330686887,1719711044853,-500.0,0.00013698,3]
[330686889,1719711044862,-500.0,0.00013698,3]
[330686891,1719711044871,-398.0608112,0.00013698,3]
[330686893,1719711044883,-500.0,0.00013698,3]
[330686895,1719711044893,-567.32,0.00013698,3]
[330686897,1719711044902,-1188.2,0.00013698,3]
[330686899,1719711044912,-500.0,0.00013698,3]
[330686900,1719711044922,-500.0,0.00013698,3]
[330686901,1719711044931,-500.0,0.00013698,3]
[330686902,1719711044941,-500.0,0.00013698,3]
[330686903,1719711044950,-500.0,0.00013698,3]
[330686904,1719711044959,-500.0,0.00013698,3]
[330686905,1719711044969,-408.48000369,0.00013698,3]
[330686906,1719711044978,-1071.25,0.00013698,3]
[330686907,1719711044988,-791.93,0.00013698,3]
[330686908,1719711044998,-708.58,0.00013698,3]
[330686909,1719711045008,-500.0,0.00013698,3]
[330686910,1719711045017,-403.11619839,0.00013698,3]
[330686911,1719711045027,-549.76,0.00013698,3]
[330686912,1719711045036,-500.0,0.00013698,3]
[330686913,1719711045046,-759.26,0.00013698,3]
[330686914,1719711045055,-538.9,0.00013698,3]
[330686915,1719711045064,-500.0,0.00013698,3]
[330686916,1719711045073,-500.0,0.00013698,3]
[330686917,1719711045082,-500.0,0.00013698,3]
[330686918,1719711045092,-500.0,0.00013698,3]
[330686919,1719711045101,-500.0,0.00013698,3]
[330686920,1719711045111,-500.0,0.00013698,3]
[330686921,1719711045120,-500.0,0.00013698,3]
[330686922,1719711045130,-608.49,0.00013698,3]
[330686923,1719711045140,-660.44,0.00013698,3]
[330686924,1719711045149,-500.0,0.00013698,3]
[330686925,1719711045159,-2629.63,0.00013698,3]
[330686926,1719711045168,-500.0,0.00013698,3]
[330686927,1719711045177,-500.0,0.00013698,3]
[330686928,1719711045187,-1298.08,0.00013698,3]
[330686929,1719711045196,-500.0,0.00013698,3]
[330686930,1719711045206,-500.0,0.00013698,3]
[330686931,1719711045215,-721.44,0.00013698,3]
[330686932,1719711045224,-500.0,0.00013698,3]
[330686933,1719711045234,-551.41,0.00013698,3]
[330686934,1719711045243,-945.69,0.00013698,3]
[330686935,1719711045253,-525.15,0.00013698,3]
[330686936,1719711045263,-1393.7,0.00013698,3]
[330686937,1719711045272,-500.0,0.00013698,3]
[330686938,1719711045281,-1708.5,0.00013698,3]
[330686939,1719711045291,-781.98,0.00013698,3]
[330686940,1719711045300,-686.06,0.00013698,3]
[330686941,1719711045309,-500.0,0.00013698,3]
[330686942,1719711045319,-500.0,0.00013698,3]
[330686943,1719711045328,-500.0,0.00013698,3]
[330686944,1719711045338,-574.91,0.00013698,3]
[330686945,1719711045347,-500.0,0.00013698,3]
[330686946,1719711045357,-1608.03,0.00013698,3]
[330686947,1719711045366,-500.0,0.00013698,3]
[330686948,1719711045376,-500.0,0.00013698,3]
[330686949,1719711045386,-500.0,0.00013698,3]
[330686950,1719711045395,-500.0,0.00013698,3]
[330686951,1719711045404,-500.0,0.00013698,3]
[330686952,1719711045414,-2272.2206,0.00013698,2]
[330686953,1719711045424,-500.0,0.00013698,3]
[330686954,1719711045433,-679.33,0.00013698,3]
[330686956,1719711045442,-500.0,0.00013698,3]
[330686957,1719711045453,-500.0,0.00013698,3]
[330686958,1719711045462,-500.0,0.00013698,3]
[330686959,1719711045471,-500.0,0.00013698,3]
[330686960,1719711045481,-899.57,0.00013698,3]
[330686961,1719711045491,-500.0,0.00013698,3]
[330686962,1719711045500,-4351.69,0.00013698,3]
[330686963,1719711045509,-590.76,0.00013698,3]
[330686964,1719711045519,-500.0,0.00013698,3]
[330686965,1719711045528,-500.0,0.00013698,3]
[330686966,1719711045537,-500.0,0.00013698,3]
[330686967,1719711045547,-581.58,0.00013698,3]
[330686968,1719711045556,-500.0,0.00013698,3]
[330686969,1719711045566,-719.02,0.00013698,3]
[330686970,1719711045579,-500.0,0.00013698,3]
[330686971,1719711045588,-500.0,0.00013698,3]
[330686972,1719711045597,-1466.68,0.00013698,3]
[330686973,1719711045606,-680.73,0.00013698,3]
[330686974,1719711045618,-500.0,0.00013698,3]
[330686975,1719711045627,-1052.34,0.00013698,3]
[330686976,1719711045637,-500.0,0.00013698,3]
[330686977,1719711045646,-500.0,0.00013698,3]
[330686978,1719711045657,-8291.65,0.00013698,3]
[330686979,1719711045667,-500.0,0.00013698,3]
[330686980,1719711045676,-500.0,0.00013698,3]
[330686981,1719711045686,-500.0,0.00013698,3]
[330686982,1719711045695,-500.0,0.00013698,3]
[330686983,1719711046011,-500.0,0.00013698,3]
[330686984,1719711046040,-500.0,0.00013698,3]
[330686985,1719711046050,-857.65,0.00013698,3]
[330686986,1719711046059,-500.0,0.00013698,3]
[330686987,1719711046068,-733.86,0.00013698,3]
[330686988,1719711046077,-2739.13,0.00013698,3]
[330686989,1719711046087,-500.0,0.00013698,3]
[330686990,1719711046096,-500.0,0.00013698,3]
[330686991,1719711046106,-500.0,0.00013698,3]
[330686992,1719711046115,-1160.63,0.00013698,3]
[330686993,1719711046124,-709.63,0.00013698,3]
[330686994,1719711046135,-1644.16,0.00013698,3]
[330686995,1719711046144,-500.0,0.00013698,3]
[330686996,1719711046153,-500.0,0.00013698,3]
[330686997,1719711046163,-500.0,0.00013698,3]
[330686998,1719711046172,-500.0,0.00013698,3]
[330686999,1719711046182,-688.73,0.00013698,3]
[330687000,1719711046192,-500.0,0.00013698,3]
[330687001,1719711046201,-151.0,0.00013698,2]
[330687002,1719711046211,-151.0,0.00013698,2]
[330687003,1719711046222,-500.0,0.00013698,3]
[330687004,1719711046231,-151.0,0.00013698,2]
[330687005,1719711046240,-151.0,0.00013698,2]
[330687006,1719711046249,-500.0,0.00013698,3]
[330687007,1719711046258,-515.33,0.00013698,3]
[330687008,1719711046267,-1136.46,0.00013698,3]
[330687009,1719711046276,-1657.35,0.00013698,3]
[330687010,1719711046286,-952.21,0.00013698,3]
[330687011,1719711046295,-651.27,0.00013698,3]
[330687012,1719711046304,-1024.41,0.00013698,3]
[330687013,1719711046314,-500.0,0.00013698,3]
[330687014,1719711046323,-500.0,0.00013698,3]
[330687015,1719711046332,-1272.44,0.00013698,3]
[330687016,1719711046342,-569.76,0.00013698,3]
[330687017,1719711046351,-666.12,0.00013698,3]
[330687018,1719711046361,-500.0,0.00013698,3]
[330687019,1719711046370,-500.0,0.00013698,3]
[330687020,1719711046380,-500.0,0.00013698,3]
[330687021,1719711046389,-990.57,0.00013698,3]
[330687022,1719711046399,-2346.07,0.00013698,3]
[330687023,1719711046408,-2333.23,0.00013698,3]
[330687024,1719711046417,-500.0,0.00013698,3]
[330687025,1719711046426,-500.0,0.00013698,3]
[330687027,1719711046436,-973.19,0.00013698,3]
[330687028,1719711046446,-500.0,0.00013698,3]
[330687030,1719711046456,-151.0,0.00013698,2]
[330687032,1719711046466,-151.0,0.00013698,2]
[330687034,1719711046475,-737.96,0.00013698,3]
[330687035,1719711046484,-681.0,0.00013698,3]
[330687036,1719711046493,-500.0,0.00013698,3]
[330687037,1719711046502,-500.0,0.00013698,3]
[330687038,1719711046511,-2093.74,0.00013698,3]
[330687039,1719711046520,-500.0,0.00013698,3]
[330687040,1719711046529,-500.0,0.00013698,3]
[330687041,1719711046538,-500.0,0.00013698,3]
[330687042,1719711046548,-1109.7,0.00013698,3]
[330687043,1719711046557,-500.0,0.00013698,3]
[330687044,1719711046567,-741.16,0.00013698,3]
[330687045,1719711046579,-1584.98,0.00013698,3]
[330687046,1719711046588,-517.54,0.00013698,3]
[330687047,1719711046598,-500.0,0.00013698,3]
[330687048,1719711046607,-17519.3,0.00013698,3]
[330687049,1719711046617,-500.0,0.00013698,3]
[330687050,1719711046627,-2255.93,0.00013698,3]
[330687051,1719711046637,-500.0,0.00013698,3]
[330687052,1719711046649,-730.7,0.00013698,3]
[330687053,1719711046658,-2373.06,0.00013698,3]
[330687054,1719711046668,-733.6,0.00013698,3]
[330687055,1719711046678,-1366.43,0.00013698,3]
[330687056,1719711046688,-1233.97,0.00013698,3]
[330687057,1719711046697,-151.0,0.00013698,2]
[330687058,1719711046707,-500.0,0.00013698,3]
[330687059,1719711046716,-151.0,0.00013698,2]
[330687060,1719711046726,-619.03,0.00013698,3]
[330687061,1719711046735,-500.0,0.00013698,3]
[330687062,1719711046746,-973.08,0.00013698,3]
[330687063,1719711046755,-500.0,0.00013698,3]
[330687064,1719711046765,-172.918101,0.00013698,2]
[330687065,1719711046775,-500.0,0.00013698,3]
[330687066,1719711046785,-2224.15,0.00013698,3]
[330687067,1719711046795,-500.0,0.00013698,3]
[330687068,1719711046804,-500.0,0.00013698,3]
[330687069,1719711046813,-565.49,0.00013698,3]
[330687070,1719711046823,-1453.68,0.00013698,3]
[330687071,1719711046834,-1103.39,0.00013698,3]
[330687072,1719711046843,-500.0,0.00013698,3]
[330687073,1719711046853,-500.0,0.00013698,3]
[330687074,1719711046863,-500.0,0.00013698,3]
[330687075,1719711046872,-500.0,0.00013698,3]
[330687076,1719711046884,-500.0,0.00013698,3]
[330687077,1719711046894,-2749.71,0.00013698,3]
[330687078,1719711046903,-500.0,0.00013698,3]
[330687079,1719711046913,-1470.04,0.00013698,3]
[330687080,1719711046923,-500.0,0.00013698,3]
[330687081,1719711046932,-500.0,0.00013698,3]
[330687082,1719711046942,-1000.06,0.00013698,3]
[330687083,1719711046951,-3074.88,0.00013698,3]
[330687084,1719711046961,-789.6,0.00013698,3]
[330687085,1719711046970,-587.36,0.00013698,3]
[330687086,1719711046980,-1717.46,0.00013698,3]
[330687087,1719711046989,-553.57,0.00013698,3]
[330687088,1719711046999,-538.78,0.00013698,3]
[330687089,1719711047008,-311.03436246,0.00013698,3]
[330687090,1719711047017,-734.77,0.00013698,3]
[330687091,1719711047027,-4030.58,0.00013698,3]
[330687092,1719711047036,-1619.26,0.00013698,3]
[330687093,1719711047045,-872.59,0.00013698,3]
[330687094,1719711047054,-505.1,0.00013698,3]
[330687095,1719711047064,-500.0,0.00013698,3]
[330687096,1719711047074,-151.0,0.00013698,2]
[330687097,1719711047083,-151.0,0.00013698,2]
[330687098,1719711047092,-500.0,0.00013698,3]
[330687099,1719711047102,-1040.75,0.00013698,3]
[330687100,1719711047111,-1019.73,0.00013698,3]
[330687101,1719711047121,-500.0,0.00013698,3]
[330687102,1719711047131,-500.0,0.00013698,3]
[330687103,1719711047140,-500.0,0.00013698,3]
[330687104,1719711047149,-2026.5,0.00013698,3]
[330687105,1719711047159,-917.98,0.00013698,3]
[330687106,1719711047168,-500.0,0.00013698,3]
[330687107,1719711047177,-544.73,0.00013698,3]
[330687108,1719711047186,-500.0,0.00013698,3]
[330687109,1719711047195,-1434.62,0.00013698,3]
[330687110,1719711047204,-914.82,0.00013698,3]
[330687111,1719711047214,-2283.96,0.00013698,3]
[330687112,1719711047223,-853.8,0.00013698,3]
[330687113,1719711047233,-806.6,0.00013698,3]
[330687114,1719711047242,-500.0,0.00013698,3]
[330687115,1719711047251,-990.19,0.00013698,3]
[330687116,1719711047260,-527.87,0.00013698,3]
[330687117,1719711047270,-500.0,0.00013698,3]
[330687118,1719711047279,-555.08,0.00013698,3]
[330687119,1719711047288,-500.0,0.00013698,3]
[330687120,1719711047298,-2932.06,0.00013698,3]
[330687121,1719711047307,-500.0,0.00013698,3]
[330687122,1719711047316,-674.79,0.00013698,3]
[330687123,1719711047325,-1092.71,0.00013698,3]
[330687124,1719711047335,-1430.53,0.00013698,3]
[330687125,1719711047344,-500.0,0.00013698,3]
[330687126,1719711047354,-866.85,0.00013698,3]
[330687127,1719711047363,-500.0,0.00013698,3]
[330687128,1719711047372,-500.0,0.00013698,3]
[330687129,1719711047381,-726.78,0.00013698,3]
[330687130,1719711047391,-500.0,0.00013698,3]
[330687131,1719711047400,-500.0,0.00013698,3]
[330687132,1719711047409,-668.37,0.00013698,3]
[330687133,1719711047419,-500.0,0.00013698,3]
[330687134,1719711047428,-500.0,0.00013698,3]
[330687135,1719711047438,-804.46,0.00013698,3]
[330687136,1719711047448,-962.38,0.00013698,3]
[330687137,1719711047457,-500.0,0.00013698,3]
[330687138,1719711047467,-623.27,0.00013698,3]
[330687139,1719711047476,-500.0,0.00013698,3]
[330687140,1719711047485,-235.82709,0.00013698,2]
[330687141,1719711047494,-1151.96,0.00013698,3]
[330687142,1719711047504,-1231.81,0.00013698,3]
[330687143,1719711047513,-572.24,0.00013698,3]
[330687144,1719711047522,-500.0,0.00013698,3]
[330687145,1719711047532,-500.0,0.00013698,3]
[330687146,1719711047541,-1003.38,0.00013698,3]
[330687147,1719711047550,-500.0,0.00013698,3]
[330687148,1719711047559,-500.0,0.00013698,3]
[330687149,1719711047574,-789.18,0.00013698,3]
[330687150,1719711047585,-500.0,0.00013698,3]
[330687151,1719711047594,-500.0,0.00013698,3]
[330687152,1719711047604,-2872.85,0.00013698,3]
[330687153,1719711047613,-996.71,0.00013698,3]
[330687154,1719711047622,-500.0,0.00013698,3]
[330687155,1719711047631,-500.0,0.00013698,3]
[330687156,1719711047642,-138523.041,0.00013698,2]
[330687157,1719711047651,-200.0,0.00013699,2]
[330687158,1719711047661,-178.59,0.00013699,2]
[330687159,1719711047671,-185.74,0.00013699,2]
[330687160,1719711047680,-151.0,0.00013699,2]
[330687161,1719711047690,-1613.16,0.00013699,2]
[330687162,1719711047699,-200.0,0.00013699,2]
[330687163,1719711047709,-10000.0,0.00013699,2]
[330687164,1719711047719,-6129.09,0.00013699,2]
[330687165,1719711047728,-1000.0,0.000137,2]
[330687166,1719711047738,-700.0,0.000137,5]
[330687167,1719711047747,-174.01036977,0.00013708,2]
[330687168,1719711047756,-170.45168611,0.00013708,2]
[330687169,1719711047765,-5374.12764471,0.00013708,2]
[330687170,1719711047775,-183.64455686,0.00013746,2]
[330687171,1719711047784,-9153.93675366,0.0001379,2]
[330687172,1719711047793,-1168.3030704,0.00013797,5]
[330687173,1719711047803,-39966.92021454,0.00013798,2]
[330687174,1719711047813,-151.0,0.00013798,2]
[330687175,1719711047823,-241.74,0.00013798,2]
[330687176,1719711047832,-151.0,0.00013798,2]
[330687177,1719711047842,-151.0,0.00013798,2]
[330687178,1719711047852,-151.0,0.00013798,2]
[330687179,1719711047862,-151.0,0.00013798,2]
[330687180,1719711047872,-93247.5311666,0.00013798,2]
[330687181,1719711047883,-4324.1985432,0.00013798,2]
[330687182,1719711047893,-7608.3354009,0.00013798,2]
[330687183,1719711047903,-151.0,0.00013798,2]
[330687184,1719711047913,-151.0,0.00013798,2]
[330687185,1719711047922,-151.0,0.00013798,2]
[330687186,1719711047931,-151.0,0.00013798,2]
[330687187,1719711047941,-151.0,0.00013798,2]
[330687188,1719711047950,-8860.1823998,0.00013798,2]
[330687189,1719711047959,-2940.46846632,0.00013799,2]
[330687190,1719711047968,-2940.4684663,0.00013799,2]
[330687191,1719711047977,-9153.93675364,0.00013799,2]
[330687192,1719711047987,-2238.01956396,0.000138,2]
[330687193,1719711047997,-1000.0,0.000138,5]
[330687194,1719711048007,-5916.48029099,0.00013807,2]
[330687195,1719711048017,-209.66596824,0.00013807,2]
[330687196,1719711048026,-856.0,0.00013808,2]
[330687197,1719711048036,-500.0,0.00013808,2]
[330687198,1719711048045,-1246.57,0.00013808,3]
[330687199,1719711048055,-2620.27,0.00013808,3]
[330687200,1719711048064,-771.15,0.00013808,3]
[330687201,1719711048073,-2420.64,0.00013808,3]
[330687202,1719711048083,-1036.09,0.00013808,3]
[330687203,1719711048092,-2486.42,0.00013808,3]
[330687204,1719711048103,-1825.95,0.00013808,3]
[330687205,1719711048112,-500.0,0.00013808,3]
[330687206,1719711048122,-500.0,0.00013808,3]
[330687207,1719711048132,-500.0,0.00013808,3]
[330687208,1719711048141,-500.0,0.00013808,3]
[330687209,1719711048150,-3712.27,0.00013808,3]
[330687210,1719711048162,-500.0,0.00013808,3]
[330687211,1719711048172,-151.0,0.00013808,2]
[330687212,1719711048181,-151.0,0.00013808,2]
[330687213,1719711048191,-285.180718,0.00013808,2]
[330687214,1719711048200,-500.0,0.00013808,3]
[330687215,1719711048210,-500.0,0.00013808,3]
[330687216,1719711048219,-500.0,0.00013808,3]
[330687217,1719711048229,-500.0,0.00013808,3]
[330687218,1719711048238,-500.0,0.00013808,3]
[330687219,1719711048246,-592.55647898,0.00013808,3]
[330687220,1719711048256,-3931.77,0.00013808,3]
[330687221,1719711048265,-500.0,0.00013808,3]
[330687223,1719711048274,-500.0,0.00013808,3]
[330687225,1719711048283,-500.0,0.00013808,3]
[330687226,1719711048292,-500.0,0.00013808,3]
[330687227,1719711048301,-2737.34,0.00013808,3]
[330687228,1719711048311,-500.0,0.00013808,3]
[330687229,1719711048319,-1116.78,0.00013808,3]
[330687230,1719711048393,-500.0,0.00013808,3]
[330687231,1719711048403,-500.0,0.00013808,3]
[330687232,1719711048412,-500.0,0.00013808,3]
[330687233,1719711048421,-500.0,0.00013808,3]
[330687234,1719711048430,-500.0,0.00013808,3]
[330687235,1719711048439,-500.0,0.00013808,3]
[330687236,1719711048449,-2164.74,0.00013808,3]
[330687237,1719711048458,-500.0,0.00013808,3]
[330687238,1719711048467,-500.0,0.00013808,3]